bitfinex/quotes_SOLUSD_20250814
["timestamp","ask_amount","ask_price","bid_price","bid_amount"]
[1755204037132,38.48,191.95,191.89,8.59739703]
[1755204037362,38.48,191.95,191.94,8.59739703]
[1755204037555,38.48,191.95,191.9,26.71]
[1755204037759,38.48,191.95,191.85,8.59739703]
[1755204037760,0.71,191.94,191.87,26.0]
[1755204038079,13.80778467,191.93,191.89,26.0]
[1755204038431,0.71,191.92,191.87,15.10621557]
[1755204038651,38.5,191.91,191.87,15.10621557]
[1755204038950,38.48,191.9,191.89,49.7036126]
[1755204039552,37.46,191.96,191.92,26.0]
[1755204039738,5.20859709,192.0,191.92,26.0]
[1755204039739,38.46,191.95,191.93,15.81621557]
[1755204039941,38.48,191.96,191.95,20.31590559]
[1755204040275,13.01729059,192.06,191.95,20.31590559]
[1755204040276,5.20589307,192.09,191.99,15.10621557]
[1755204040484,0.71,192.08,192.04,8.59739703]
[1755204040778,38.62,192.08,192.06,8.59739703]
[1755204040980,38.62,192.08,192.07,8.59739703]
[1755204041350,38.62,192.08,192.06,15.10621557]
[1755204041569,0.71,192.14,192.08,15.10621557]
[1755204041878,4.2257918,192.22,192.08,15.10621557]
[1755204041879,0.71,192.17,192.12,15.10621557]
[1755204042084,38.62,192.16,192.15,8.59739703]
[1755204042241,47.92739703,192.16,192.09,26.0]
[1755204042447,8.59739703,192.13,192.07,15.10621557]
[1755204042750,13.3885902,192.11,192.06,26.0]
[1755204042956,38.62,192.1,192.06,26.0]
[1755204043148,39.33,192.1,192.06,26.0]
[1755204043349,38.62,192.1,192.06,39.3885902]
[1755204043535,38.62,192.1,192.07,28.49480577]
[1755204043737,0.71,192.19,192.1,15.10621557]
[1755204043940,38.62,192.18,192.14,13.3885902]
[1755204044140,44.53365526,192.18,192.1,21.02175049]
[1755204044401,57.92224546,192.18,192.12,13.3885902]
[1755204044575,44.53365526,192.18,192.1,15.10621557]
[1755204044776,44.53365526,192.18,192.13,13.3885902]
[1755204044993,13.3885902,192.15,192.08,13.3885902]
[1755204045171,13.3885902,192.13,192.06,39.3885902]
[1755204045370,0.71,192.12,192.06,39.3885902]
[1755204045605,13.3885902,192.11,192.01,0.71]
[1755204045914,14.0985902,192.1,192.04,15.10621557]
[1755204046195,14.0985902,192.1,192.03,13.3885902]
[1755204046196,5.20616409,192.08,192.03,39.3885902]
[1755204046511,0.71,192.07,192.01,13.3885902]
[1755204046671,18.59475429,192.08,192.02,28.49480577]
[1755204047003,38.62,192.09,192.05,13.3885902]
[1755204047178,38.62,192.09,192.07,13.3885902]
[1755204047678,38.62,192.09,192.06,13.3885902]
[1755204047998,0.71,192.08,192.03,26.0]
[1755204048210,19.30502535,192.07,192.02,15.10621557]
[1755204048406,18.59502535,192.07,192.02,15.10621557]
[1755204048613,0.71,192.06,192.02,15.10621557]
[1755204049207,0.71,192.06,192.01,26.0]
[1755204049605,18.59502535,192.07,192.01,26.0]
[1755204049606,14.0985902,192.05,192.01,15.10621557]
[1755204049809,38.6,192.04,192.01,15.10621557]
[1755204050117,43.8073843,192.04,192.01,15.10621557]
[1755204050331,44.5173843,192.04,192.0,15.10621557]
[1755204050892,0.71,192.03,191.98,13.3885902]
[1755204051093,0.71,192.02,191.97,28.49480577]
[1755204051292,0.71,192.02,191.98,26.0]
[1755204051593,0.71,192.01,191.95,28.49480577]
[1755204051806,38.58,192.0,191.92,15.10621557]
[1755204052008,38.58,192.0,191.93,13.3885902]
[1755204052009,14.0985902,191.99,191.93,13.3885902]
[1755204052197,5.20887592,191.98,191.93,39.3885902]
[1755204052502,5.20887592,191.98,191.93,13.3885902]
[1755204052885,5.20887592,191.98,191.94,13.3885902]
[1755204053105,14.0985902,192.04,191.97,13.3885902]
[1755204053310,38.6,192.03,191.99,13.3885902]
[1755204054327,38.6,192.03,192.0,13.3885902]
[1755204054615,5.20670623,192.06,192.01,13.3885902]
[1755204054819,39.31,192.05,192.01,13.3885902]
[1755204055411,38.6,192.05,192.01,13.3885902]
[1755204055716,43.80701329,192.05,192.01,13.3885902]
[1755204056107,38.6,192.05,192.04,13.3885902]
[1755204057621,38.6,192.05,192.03,13.3885902]
[1755204057826,38.6,192.05,192.04,28.49480577]
[1755204058801,38.6,192.05,192.03,13.3885902]
[1755204059122,38.6,192.05,191.97,26.0]
[1755204059123,17.48949988,192.04,191.99,26.0]
[1755204059299,3.39090968,192.03,191.99,26.0]
[1755204059699,8.59858447,192.03,191.99,26.0]
[1755204059896,8.59858447,192.03,191.98,13.3885902]
[1755204059897,5.20767479,192.03,191.98,13.3885902]
[1755204060130,5.91767479,192.03,191.99,15.10621557]
[1755204060313,5.91767479,192.03,192.02,13.3885902]
[1755204060314,3.39090968,192.03,192.02,13.3885902]
[1755204060513,3.39090968,192.03,192.0,0.71]
[1755204060514,38.56,192.03,192.01,28.49480577]
[1755204061222,38.56,192.03,192.02,13.3885902]
[1755204061429,38.54,192.05,192.02,14.0885902]
[1755204061726,38.56,192.05,192.04,28.49480577]
[1755204062602,38.56,192.05,192.04,34.40205425]
[1755204062805,38.56,192.05,192.04,29.6379484]
[1755204063509,0.71,192.16,192.08,15.10621557]
[1755204063708,0.71,192.16,192.07,34.62448435]
[1755204063709,5.20508015,192.12,192.07,34.62448435]
[1755204063911,8.62448435,192.1,192.04,23.73069992]
[1755204064122,38.56,192.09,192.04,23.73069992]
[1755204064433,0.71,192.08,192.04,15.10621557]
[1755204065018,38.56,192.09,192.05,13.3899751]
[1755204065621,38.56,192.09,192.04,29.19619067]
[1755204065810,43.76603864,192.09,192.04,28.49619067]
[1755204066008,43.76603864,192.09,192.04,26.10362567]
[1755204066331,43.76603864,192.09,192.04,12.71365057]
[1755204066633,44.47603864,192.09,192.04,26.10362567]
[1755204066855,43.76603864,192.09,192.04,26.10362567]
[1755204067138,38.56,192.09,192.04,26.10362567]
[1755204067928,38.56,192.09,192.06,13.3899751]
[1755204068324,43.76589324,192.09,192.05,13.3899751]
[1755204069034,17.51104724,192.08,192.03,26.0]
[1755204069218,17.51104724,192.08,192.0,15.10621557]
[1755204069219,4.12211438,192.07,192.01,13.3899751]
[1755204069411,17.51208948,192.07,192.0,54.49619067]
[1755204069611,0.71,192.07,192.02,13.3899751]
[1755204070136,9.32981489,192.07,192.02,13.3899751]
[1755204070547,5.91656141,192.07,192.02,13.3899751]
[1755204070745,3.41325348,192.07,192.04,13.3899751]
[1755204070930,38.56,192.09,192.04,13.3899751]
[1755204071753,39.27,192.09,192.05,13.3899751]
[1755204071940,38.56,192.09,192.05,13.3899751]
[1755204072132,38.56,192.09,192.06,13.3899751]
[1755204072718,43.76596756,192.09,192.06,13.3899751]
[1755204073342,38.56,192.09,192.06,13.3899751]
[1755204073946,43.76604583,192.09,192.06,13.3899751]
[1755204075747,0.71,192.08,192.04,13.3899751]
[1755204076149,0.71,192.07,192.02,0.03]
[1755204076460,38.4,192.06,192.04,13.3899751]
[1755204076665,38.4,192.06,192.05,28.49619067]
[1755204076829,38.4,192.06,192.05,29.19619067]
[1755204077359,38.4,192.06,192.05,34.40316801]
[1755204077729,0.71,192.14,192.09,15.10621557]
[1755204077935,38.46,192.13,192.12,28.49619067]
[1755204078159,38.46,192.13,192.12,13.3899751]
[1755204078569,38.46,192.13,192.12,14.0899751]
[1755204078724,38.46,192.13,192.12,13.3899751]
[1755204078929,38.46,192.13,192.08,26.7]
[1755204079229,38.46,192.13,192.12,28.49619067]
[1755204079537,38.46,192.13,192.11,13.3899751]
[1755204080058,38.48,192.12,192.09,39.3899751]
[1755204081154,38.19,192.17,192.1,28.49619067]
[1755204081356,41.92861536,192.16,192.12,13.3899751]
[1755204081564,41.92861536,192.16,192.11,13.3899751]
[1755204081565,4.13861536,192.15,192.11,13.3899751]
[1755204081932,0.71,192.14,192.11,13.3899751]
[1755204082124,43.70399666,192.16,192.09,26.0]
[1755204082125,0.71,192.13,192.09,13.3899751]
[1755204082340,38.5,192.12,192.1,13.3899751]
[1755204082749,37.48,192.17,192.11,29.19619067]
[1755204083066,38.52,192.16,192.15,13.3899751]
[1755204083868,38.52,192.16,192.15,34.40045816]
[1755204086657,38.52,192.16,192.15,23.72150809]
[1755204087947,38.52,192.16,192.11,13.01337771]
[1755204087948,38.52,192.16,192.14,26.0]
[1755204088147,0.71,192.15,192.14,26.0]
[1755204088533,0.71,192.15,192.1,34.61529252]
[1755204088738,0.71,192.14,192.11,26.0]
[1755204088941,0.71,192.13,192.11,26.0]
[1755204089142,38.5,192.12,192.11,8.61529252]
[1755204089348,38.5,192.12,192.11,34.61529252]
[1755204089748,38.5,192.12,192.11,26.0]
[1755204090946,39.22,192.12,192.11,26.0]
[1755204091147,38.5,192.12,192.11,26.0]
[1755204091362,38.5,192.12,192.11,34.61529252]
[1755204092364,44.42508015,192.12,192.08,49.72150809]
[1755204092574,44.42508015,192.12,192.07,8.61529252]
[1755204092575,0.72,192.11,192.07,8.61529252]
[1755204092968,8.61529252,192.13,192.07,8.61529252]
[1755204092969,0.72,192.15,192.11,15.10621557]
[1755204093153,38.44,192.15,192.14,8.61529252]
[1755204093360,38.44,192.15,192.14,23.72150809]
[1755204093857,38.44,192.15,192.14,24.38150809]
[1755204094259,38.44,192.15,192.14,29.58604644]
[1755204094470,0.06,192.16,192.14,29.58604644]
[1755204094471,0.06,192.16,192.15,15.10621557]
[1755204094766,0.06,192.16,192.15,24.38150809]
[1755204094965,0.06,192.16,192.15,23.72150809]
[1755204095171,0.06,192.16,192.15,24.38150809]
[1755204095871,0.06,192.16,192.15,49.72150809]
[1755204096166,0.06,192.16,192.12,43.66505804]
[1755204096167,5.98399666,192.16,192.14,26.0]
[1755204096669,5.26399666,192.16,192.14,26.0]
[1755204096849,0.06,192.16,192.14,34.61529252]
[1755204097051,0.06,192.16,192.15,8.61529252]
[1755204097251,0.06,192.16,192.15,23.72150809]
[1755204097450,0.06,192.16,192.15,24.38150809]
[1755204098548,0.06,192.16,192.15,29.58577558]
[1755204099153,0.06,192.16,192.15,28.92577558]
[1755204099374,0.06,192.16,192.15,23.72150809]
[1755204099766,0.06,192.16,192.15,49.72150809]
[1755204100380,0.06,192.16,192.15,38.2010681]
[1755204100560,0.06,192.18,192.16,20.31021223]
[1755204100874,0.06,192.18,192.17,24.24188067]
[1755204101087,0.06,192.18,192.17,24.90188067]
[1755204102887,0.06,192.18,192.17,30.10560653]
[1755204106684,0.06,192.18,192.17,23.72150809]
[1755204106919,0.78,192.18,192.12,5.20508015]
[1755204107182,0.78,192.18,192.16,34.61529252]
[1755204107968,0.06,192.18,192.17,23.72150809]
[1755204109501,0.06,192.18,192.17,28.92523395]
[1755204112105,0.06,192.18,192.17,23.72150809]
[1755204112402,0.78,192.18,192.17,23.72150809]
[1755204112791,0.06,192.18,192.17,23.72150809]
[1755204113391,0.06,192.18,192.17,28.92523395]
[1755204115397,0.06,192.18,192.17,29.58523395]
[1755204115580,0.06,192.22,192.21,15.10621557]
[1755204115784,0.06,192.22,192.21,49.72150809]
[1755204116108,0.06,192.22,192.21,55.58415103]
[1755204116804,0.06,192.22,192.21,54.92415103]
[1755204117399,0.06,192.22,192.21,49.72150809]
[1755204117601,0.06,192.22,192.21,41.10621557]
[1755204117602,0.78,192.22,192.21,41.10621557]
[1755204117801,0.78,192.22,192.21,49.72150809]
[1755204117802,0.06,192.22,192.21,49.72150809]
[1755204118008,0.78,192.22,192.21,49.72150809]
[1755204118784,0.78,192.22,192.19,5.20313407]
[1755204118785,0.78,192.22,192.19,8.61529252]
[1755204119088,0.72,192.21,192.19,8.61529252]
[1755204119434,0.06,192.22,192.2,49.72150809]
[1755204119605,0.06,192.22,192.21,23.72150809]
[1755204119987,0.06,192.22,192.21,24.38150809]
[1755204120189,0.06,192.22,192.21,29.58415103]
[1755204120789,0.06,192.22,192.21,28.92415103]
[1755204121992,0.06,192.22,192.21,96.44415103]
[1755204122203,0.06,192.24,192.23,46.30831721]
[1755204122400,0.06,192.24,192.23,55.44381989]
[1755204122591,0.06,192.27,192.26,41.10621557]
[1755204122798,0.06,192.27,192.26,49.72150809]
[1755204124290,0.06,192.27,192.26,55.642798]
[1755204124803,0.06,192.27,192.26,54.922798]
[1755204124985,0.06,192.27,192.26,55.642798]
[1755204125191,0.06,192.27,192.26,122.442798]
[1755204125490,0.06,192.27,192.26,160.802798]
[1755204125692,0.06,192.29,192.27,15.10621557]
[1755204125899,0.06,192.29,192.28,24.24158298]
[1755204126409,0.06,192.29,192.28,31.00347699]
[1755204128121,0.06,192.29,192.28,31.72347699]
[1755204128409,0.06,192.29,192.28,31.00347699]
[1755204128799,0.06,192.29,192.28,97.80347699]
[1755204129388,0.06,192.29,192.28,98.52347699]
[1755204131833,0.06,192.29,192.28,97.80347699]
[1755204132911,0.06,192.29,192.28,98.52347699]
[1755204133108,0.06,192.29,192.28,136.78347699]
[1755204133304,0.06,192.31,192.3,41.10621557]
[1755204133504,0.06,192.31,192.3,116.52150809]
[1755204133824,0.06,192.31,192.3,155.50150809]
[1755204134725,0.06,192.31,192.3,160.70171609]
[1755204134916,0.06,192.31,192.3,162.78271909]
[1755204136009,0.06,192.33,192.32,23.72150809]
[1755204136211,0.06,192.33,192.32,62.44147481]
[1755204136420,0.06,192.33,192.32,63.16147481]
[1755204136617,0.06,192.33,192.32,28.92117531]
[1755204136926,0.73,192.33,192.32,31.00206931]
[1755204137514,0.06,192.33,192.32,31.00206931]
[1755204137714,0.06,192.33,192.32,32.24203603]
[1755204138235,0.67,192.39,192.36,41.10621557]
[1755204138440,0.67,192.39,192.37,23.72150809]
[1755204138605,0.73,192.38,192.37,23.72150809]
[1755204138809,0.06,192.38,192.37,28.91982383]
[1755204139223,0.06,192.38,192.37,29.4396554]
[1755204139828,0.06,192.4,192.39,15.10621557]
[1755204140031,0.06,192.4,192.39,23.72150809]
[1755204140534,0.06,192.4,192.39,28.91928344]
[1755204140535,0.73,192.4,192.39,28.91928344]
[1755204141326,0.73,192.4,192.39,54.91928344]
[1755204141824,0.73,192.4,192.39,15.10621557]
[1755204142143,0.73,192.4,192.39,23.72150809]
[1755204143314,0.73,192.4,192.38,28.080678]
[1755204143619,0.67,192.39,192.38,26.0]
[1755204144825,0.67,192.39,192.38,41.10621557]
[1755204145024,0.67,192.39,192.38,49.72150809]
[1755204145530,0.06,192.4,192.39,15.10621557]
[1755204145739,0.06,192.4,192.39,23.72150809]
[1755204146923,0.06,192.4,192.39,28.91928344]
[1755204147228,0.06,192.4,192.39,25.80197009]
[1755204147735,0.73,192.4,192.39,2.080462]
[1755204148044,0.73,192.4,192.38,26.0]
[1755204148416,0.67,192.39,192.38,41.10621557]
[1755204150353,14.48311008,192.39,192.34,15.10621557]
[1755204150640,0.67,192.38,192.34,15.10621557]
[1755204150817,9.28529252,192.38,192.34,15.10621557]
[1755204151021,0.67,192.37,192.35,26.0]
[1755204151722,5.86847994,192.37,192.32,8.61529252]
[1755204151926,0.67,192.36,192.33,15.10621557]
[1755204152446,0.67,192.35,192.33,23.72150809]
[1755204153537,0.67,192.38,192.34,8.61529252]
[1755204153739,0.67,192.38,192.35,8.61529252]
[1755204153932,0.67,192.38,192.36,23.72150809]
[1755204154241,38.81,192.4,192.37,8.61529252]
[1755204154461,0.73,192.4,192.38,15.10621557]
[1755204154633,0.73,192.4,192.38,8.61529252]
[1755204155147,0.67,192.39,192.34,20.30527337]
[1755204155325,0.06,192.4,192.34,20.30527337]
[1755204155326,0.67,192.38,192.36,15.10621557]
[1755204155518,0.67,192.38,192.36,23.72150809]
[1755204156248,0.67,192.37,192.36,15.10621557]
[1755204157439,5.86777535,192.39,192.36,15.10621557]
[1755204157628,0.06,192.4,192.38,23.72150809]
[1755204157828,0.06,192.4,192.39,8.61529252]
[1755204158223,0.06,192.4,192.38,8.61529252]
[1755204158857,0.06,192.4,192.39,8.61529252]
[1755204159221,0.06,192.4,192.39,23.72150809]
[1755204160148,0.06,192.4,192.39,28.91928344]
[1755204160324,0.73,192.4,192.38,50.22037952]
[1755204160645,0.73,192.4,192.38,34.61529252]
[1755204160851,0.06,192.4,192.39,34.61529252]
[1755204161230,0.06,192.4,192.39,49.72150809]
[1755204162032,0.06,192.4,192.39,51.80218609]
[1755204162252,0.06,192.4,192.39,57.68996144]
[1755204162756,0.06,192.42,192.39,57.68996144]
[1755204162757,0.06,192.42,192.4,15.10621557]
[1755204162962,0.06,192.42,192.41,23.72150809]
[1755204163133,0.06,192.42,192.41,24.41150809]
[1755204164129,0.06,192.42,192.41,23.72150809]
[1755204164346,0.06,192.42,192.41,28.91874316]
[1755204164625,0.06,192.42,192.41,29.60874316]
[1755204164832,0.06,192.42,192.41,28.91874316]
[1755204165131,0.06,192.42,192.41,49.72150809]
[1755204166635,0.06,192.42,192.41,41.10621557]
[1755204166861,0.06,192.42,192.41,49.72150809]
[1755204168555,0.06,192.42,192.41,54.91769009]
[1755204171455,0.73,192.42,192.41,31.196182]
[1755204171659,0.73,192.42,192.35,15.10621557]
[1755204171858,0.73,192.42,192.4,26.0]
[1755204172253,0.73,192.42,192.38,15.10621557]
[1755204172441,0.67,192.41,192.38,15.10621557]
[1755204172642,5.25699429,192.42,192.38,15.10621557]
[1755204172942,0.06,192.42,192.38,23.72150809]
[1755204173142,0.73,192.42,192.38,23.72150809]
[1755204173343,0.73,192.42,192.4,8.64529252]
[1755204173859,0.73,192.42,192.4,0.03]
[1755204174048,0.67,192.41,192.4,0.03]
[1755204175549,0.06,192.42,192.4,0.03]
[1755204176246,0.06,192.42,192.41,23.72150809]
[1755204176661,0.06,192.42,192.41,15.10621557]
[1755204176864,0.06,192.42,192.41,23.72150809]
[1755204177679,0.06,192.42,192.41,28.91874316]
[1755204178163,0.06,192.42,192.41,29.60874316]
[1755204178673,0.06,192.42,192.41,26.57594179]
[1755204178982,0.06,192.42,192.41,27.09566529]
[1755204179282,0.06,192.42,192.41,26.57594179]
[1755204180265,0.06,192.44,192.43,15.10621557]
[1755204180486,0.06,192.44,192.43,21.20837621]
[1755204180769,0.06,192.44,192.43,24.89176058]
[1755204181479,0.06,192.46,192.45,15.10621557]
[1755204181670,0.06,192.47,192.46,54.92209109]
[1755204181846,0.06,192.47,192.46,55.60209109]
[1755204182249,0.06,192.47,192.46,57.68136309]
[1755204182762,0.06,192.47,192.46,26.45136309]
[1755204184191,0.06,192.47,192.46,30.96724794]
[1755204184369,0.06,192.48,192.47,15.10621557]
[1755204184691,0.06,192.48,192.47,62.67165258]
[1755204184994,0.06,192.48,192.47,90.49209109]
[1755204185588,0.06,192.48,192.47,23.69209109]
[1755204185589,0.74,192.48,192.47,23.69209109]
[1755204186186,0.74,192.48,192.47,8.58587552]
[1755204186687,0.74,192.48,192.44,66.8]
[1755204186868,0.74,192.48,192.45,15.10621557]
[1755204187190,5.93534705,192.48,192.45,15.10621557]
[1755204187394,5.25534705,192.48,192.45,15.10621557]
[1755204187596,0.68,192.47,192.46,26.0]
[1755204188367,0.68,192.47,192.43,15.10621557]
[1755204188991,5.87573244,192.47,192.43,15.10621557]
[1755204189165,5.87573244,192.47,192.4,0.03]
[1755204189166,8.58587552,192.45,192.4,0.03]
[1755204189363,8.58587552,192.43,192.4,0.03]
[1755204189564,0.68,192.42,192.4,0.03]
[1755204189877,9.26587552,192.42,192.4,0.03]
[1755204190286,43.67723507,192.41,192.4,0.03]
[1755204190658,38.48,192.41,192.4,0.03]
[1755204193789,37.8,192.41,192.4,23.72209109]
[1755204194520,37.8,192.41,192.4,28.91959628]
[1755204195072,37.8,192.41,192.4,23.72209109]
[1755204195389,38.48,192.41,192.4,23.72209109]
[1755204195890,37.8,192.41,192.4,23.72209109]
[1755204196591,37.8,192.41,192.4,28.91959628]
[1755204197097,37.8,192.41,192.4,23.72209109]
[1755204197294,43.67723507,192.41,192.4,26.03]
[1755204198387,38.48,192.41,192.4,26.03]
[1755204200591,37.8,192.41,192.4,49.72209109]
[1755204200973,0.68,192.47,192.41,15.10621557]
[1755204201178,37.76,192.46,192.43,8.58587552]
[1755204201497,38.44,192.46,192.43,8.58587552]
[1755204202091,37.76,192.46,192.43,8.58587552]
[1755204202296,0.68,192.45,192.43,15.10621557]
[1755204202676,0.68,192.44,192.43,15.10621557]
[1755204203575,42.95590554,192.46,192.43,15.10621557]
[1755204203576,43.63590554,192.46,192.43,15.10621557]
[1755204204071,0.68,192.45,192.43,15.10621557]
[1755204205506,0.68,192.44,192.41,23.69209109]
[1755204205693,8.58587552,192.43,192.4,0.03]
[1755204205898,46.34587552,192.42,192.4,0.03]
[1755204206091,3.45975054,192.41,192.4,0.03]
[1755204206476,4.13975054,192.41,192.4,0.03]
[1755204206792,9.33698561,192.41,192.4,0.03]
[1755204209888,17.92286113,192.41,192.4,0.03]
[1755204211386,55.68286113,192.41,192.4,0.03]
[1755204215194,55.68286113,192.41,192.38,0.03]
[1755204215390,8.58587552,192.39,192.38,0.03]
[1755204215711,46.34587552,192.39,192.38,0.03]
[1755204215896,50.49562606,192.39,192.38,0.03]
[1755204217797,41.21975054,192.39,192.38,0.03]
[1755204218002,12.99071015,192.45,192.38,9.27587552]
[1755204218003,9.27587552,192.45,192.38,9.27587552]
[1755204218210,37.76,192.44,192.39,8.58587552]
[1755204218396,3.45390161,192.43,192.39,9.24587552]
[1755204218596,37.76,192.42,192.39,9.24587552]
[1755204218810,37.76,192.42,192.39,6.24723889]
[1755204219717,37.76,192.42,192.4,5.58723889]
[1755204220196,37.76,192.42,192.41,5.58723889]
[1755204220522,37.76,192.42,192.41,6.24723889]
[1755204220690,37.76,192.42,192.41,9.2524142]
[1755204221085,37.76,192.42,192.41,8.5924142]
[1755204221512,37.76,192.42,192.4,8.5924142]
[1755204221716,38.45,192.42,192.4,8.5924142]
[1755204221913,42.95696497,192.42,192.4,8.5924142]
[1755204222524,37.76,192.42,192.41,8.5924142]
[1755204223604,37.76,192.42,192.41,24.35862977]
[1755204223807,37.76,192.42,192.41,29.55586484]
[1755204224889,37.76,192.42,192.41,8.5924142]
[1755204226720,37.76,192.42,192.4,15.13621557]
[1755204226721,38.45,192.42,192.4,8.6224142]
[1755204226903,0.69,192.41,192.4,0.03]
[1755204228334,5.88723507,192.41,192.4,8.6224142]
[1755204228525,42.95699759,192.42,192.4,8.6224142]
[1755204228922,43.64699759,192.42,192.4,8.6224142]
[1755204229534,38.45,192.42,192.4,0.03]
[1755204229733,37.76,192.42,192.41,8.5924142]
[1755204229902,0.69,192.45,192.41,8.5924142]
[1755204230103,37.74,192.44,192.4,0.03]
[1755204230304,3.46468535,192.43,192.4,0.03]
[1755204230522,37.74,192.44,192.42,8.5924142]
[1755204230727,0.06,192.47,192.43,9.2524142]
[1755204230913,0.06,192.47,192.46,8.5924142]
[1755204231216,37.8,192.47,192.46,8.5924142]
[1755204231529,47.15036025,192.47,192.44,8.5924142]
[1755204231825,0.06,192.45,192.44,8.5924142]
[1755204232050,0.75,192.45,192.43,8.5924142]
[1755204232333,37.74,192.44,192.43,8.5924142]
[1755204232829,41.8968889,192.44,192.4,8.6224142]
[1755204233011,41.8968889,192.44,192.4,0.03]
[1755204233012,4.1568889,192.43,192.4,0.03]
[1755204233426,0.69,192.42,192.4,0.03]
[1755204233626,37.74,192.41,192.4,8.6224142]
[1755204233932,41.2068889,192.41,192.4,8.6224142]
[1755204234926,47.09412397,192.41,192.4,0.03]
[1755204235727,41.2068889,192.41,192.4,0.03]
[1755204236314,46.40412397,192.41,192.4,0.03]
[1755204236514,47.09412397,192.41,192.4,0.03]
[1755204237836,55.68653817,192.41,192.4,0.03]
[1755204238436,59.98514305,192.41,192.4,0.03]
[1755204240430,51.39272885,192.41,192.4,0.03]
[1755204240625,41.2068889,192.41,192.4,8.6224142]
[1755204240940,46.40412397,192.41,192.4,8.6224142]
[1755204241328,46.40412397,192.41,192.4,0.03]
[1755204242235,41.2668889,192.41,192.4,0.03]
[1755204242429,46.46412397,192.41,192.4,0.03]
[1755204243921,47.16412397,192.41,192.4,0.03]
[1755204244239,60.05514305,192.41,192.4,0.03]
[1755204244410,51.46272885,192.41,192.4,0.03]
[1755204245428,60.05514305,192.41,192.4,0.03]
[1755204247943,55.75653817,192.41,192.38,0.03]
[1755204248117,7.79798671,192.4,192.38,0.03]
[1755204248319,41.2068889,192.39,192.38,0.03]
[1755204248515,41.9068889,192.39,192.38,0.03]
[1755204248721,41.2068889,192.39,192.38,0.03]
[1755204249027,41.9068889,192.39,192.38,0.03]
[1755204250044,47.10466425,192.39,192.38,0.03]
[1755204250256,55.69707845,192.39,192.38,0.03]
[1755204250428,55.69707845,192.39,192.36,0.03]
[1755204250745,9.92290286,192.37,192.36,0.03]
[1755204250948,51.12979176,192.37,192.36,0.03]
[1755204251125,51.82979176,192.37,192.36,0.03]
[1755204251936,46.23731249,192.37,192.36,0.03]
[1755204252142,51.43562823,192.37,192.36,0.03]
[1755204253230,13.69562823,192.37,192.36,0.03]
[1755204253544,46.40520464,192.37,192.36,0.03]
[1755204255935,47.10520464,192.37,192.36,0.03]
[1755204256146,51.43562823,192.37,192.36,0.03]
[1755204257343,46.40520464,192.37,192.36,0.03]
[1755204259430,41.2068889,192.37,192.36,0.74]
[1755204260730,41.2068889,192.37,192.36,0.03]
[1755204261835,46.40520464,192.37,192.36,5.62247927]
[1755204262537,41.2068889,192.37,192.36,5.62247927]
[1755204265952,46.40520464,192.37,192.36,5.62247927]
[1755204266662,41.2068889,192.37,192.36,5.62247927]
[1755204267040,46.40520464,192.37,192.36,5.62247927]
[1755204267666,41.2068889,192.37,192.36,5.62247927]
[1755204268653,3.4668889,192.37,192.36,26.63728082]
[1755204268956,0.06,192.41,192.37,15.10621557]
[1755204269156,0.06,192.41,192.4,26.29117411]
[1755204269352,37.78,192.41,192.4,26.29117411]
[1755204269662,37.78,192.41,192.4,21.40869484]
[1755204270335,37.78,192.41,192.4,37.01215884]
[1755204270649,37.78,192.41,192.4,42.20966403]
[1755204271164,37.78,192.41,192.4,37.01215884]
[1755204272442,37.78,192.41,192.4,42.20966403]
[1755204274246,0.06,192.41,192.4,42.20966403]
[1755204274450,0.06,192.42,192.41,15.10621557]